[Event "Titled Tuesday Blitz November 08 Late 2022"]
[White "Ambartsumova, Karina"]
[Black "Korkmaz, Necmettin"]
[WhiteFideId "4166299"]
[BlackFideId "6303285"]
[WhiteElo "2319"]
[BlackElo "2094"]
[Result "0-1"]
[Round "08"]
[TimeControl "180+1"]
[Date "2022.11.09"]
[WhiteClock "0:00:06"]
[BlackClock "0:00:14"]

1. Nf3 {[%clk 0:03:00]}  d5 {[%clk 0:02:59]} 2. d4 {[%clk 0:02:59]}  Nf6 {[%clk 0:02:56]} 3. c4 {[%clk 0:02:59]}  c6 {[%clk 0:02:55]} 4. g3 {[%clk 0:02:59]}  g6 {[%clk 0:02:55]} 5. Bg2 {[%clk 0:02:57]}  Bg7 {[%clk 0:02:55]} 6. b3 {[%clk 0:02:58]}  Ne4 {[%clk 0:02:53]} 7. Bb2 {[%clk 0:02:57]}  O-O {[%clk 0:02:50]} 8. O-O {[%clk 0:02:56]}  Bf5 {[%clk 0:02:47]} 9. Nbd2 {[%clk 0:02:56]}  Nxd2 {[%clk 0:02:43]} 10. Qxd2 {[%clk 0:02:43]}  Be4 {[%clk 0:02:43]} 11. Bh3 {[%clk 0:02:43]}  h6 {[%clk 0:02:32]} 12. Nh4 {[%clk 0:02:24]}  e6 {[%clk 0:01:54]} 13. Rad1 {[%clk 0:01:44]}  g5 {[%clk 0:01:48]} 14. Ng2 {[%clk 0:01:43]}  h5 {[%clk 0:01:17]} 15. f3 {[%clk 0:01:40]}  Bg6 {[%clk 0:01:17]} 16. Ne1 {[%clk 0:01:30]}  Nd7 {[%clk 0:01:13]} 17. Bg2 {[%clk 0:01:26]}  dxc4 {[%clk 0:01:10]} 18. bxc4 {[%clk 0:01:26]}  e5 {[%clk 0:01:10]} 19. e4 {[%clk 0:00:43]}  exd4 {[%clk 0:01:03]} 20. Bxd4 {[%clk 0:00:44]}  Ne5 {[%clk 0:00:56]} 21. Nc2 {[%clk 0:00:28]}  c5 {[%clk 0:00:43]} 22. Bxc5 {[%clk 0:00:27]}  Qxd2 {[%clk 0:00:41]} 23. Rxd2 {[%clk 0:00:27]}  Nxc4 {[%clk 0:00:41]} 24. Rd7 {[%clk 0:00:27]}  Rfc8 {[%clk 0:00:39]} 25. Bd4 {[%clk 0:00:21]}  Nb6 {[%clk 0:00:33]} 26. Bxb6 {[%clk 0:00:18]}  axb6 {[%clk 0:00:22]} 27. Nb4 {[%clk 0:00:18]}  Ra4 {[%clk 0:00:21]} 28. Nd5 {[%clk 0:00:17]}  Bd4+ {[%clk 0:00:20]} 29. Kh1 {[%clk 0:00:17]}  Rc2 {[%clk 0:00:20]} 30. Ne7+ {[%clk 0:00:09]}  Kg7 {[%clk 0:00:20]} 31. Nxg6 {[%clk 0:00:08]}  Kxg6 {[%clk 0:00:20]} 32. Rd6+ {[%clk 0:00:07]}  f6 {[%clk 0:00:20]} 33. Rd1 {[%clk 0:00:07]}  Raxa2 {[%clk 0:00:19]} 34. R6xd4 {[%clk 0:00:06]}  Rxg2 {[%clk 0:00:19]} 35. Rb4 {[%clk 0:00:06]}  Rxh2+ {[%clk 0:00:19]} 36. Kg1 {[%clk 0:00:06]}  Rag2+ {[%clk 0:00:20]} 37. Kf1 {[%clk 0:00:07]}  Rxg3 {[%clk 0:00:20]} 38. Rd6 {[%clk 0:00:05]}  Rxf3+ {[%clk 0:00:20]} 39. Kg1 {[%clk 0:00:06]}  Re2 {[%clk 0:00:19]} 40. Rbxb6 {[%clk 0:00:06]}  Rxe4 {[%clk 0:00:19]} 41. Rxb7 {[%clk 0:00:06]}  h4 {[%clk 0:00:19]} 42. Kg2 {[%clk 0:00:06]}  Rff4 {[%clk 0:00:19]} 43. Rd8 {[%clk 0:00:06]}  Re2+ {[%clk 0:00:19]} 44. Kg1 {[%clk 0:00:06]}  Re3 {[%clk 0:00:19]} 45. Rg8+ {[%clk 0:00:06]}  Kf5 {[%clk 0:00:19]} 46. Rb2 {[%clk 0:00:05]}  Kg4 {[%clk 0:00:19]} 47. Rg2+ {[%clk 0:00:06]}  Rg3 {[%clk 0:00:19]} 48. Kh2 {[%clk 0:00:04]}  Rxg2+ {[%clk 0:00:19]} 49. Kxg2 {[%clk 0:00:05]}  Ra4 {[%clk 0:00:18]} 50. Kf2 {[%clk 0:00:05]}  f5 {[%clk 0:00:18]} 51. Kf1 {[%clk 0:00:06]}  Kf3 {[%clk 0:00:16]} 52. Ra8 {[%clk 0:00:06]}  Rxa8 {[%clk 0:00:14]} 0-1


[Site "https://www.chess.com"]

[Event "Titled Tuesday Blitz November 08 Late 2022"]
[White "Ansh M Shah"]
[Black "Salman, Pavel"]
[WhiteFideId "25033379"]
[BlackFideId "24153753"]
[WhiteElo "2084"]
[BlackElo "2187"]
[Result "0-1"]
[Round "08"]
[TimeControl "180+1"]
[Date "2022.11.09"]
[WhiteClock "0:00:05"]
[BlackClock "0:00:17"]

1. d4 {[%clk 0:03:00]}  d6 {[%clk 0:02:59]} 2. c4 {[%clk 0:02:58]}  e5 {[%clk 0:03:00]} 3. d5 {[%clk 0:02:55]}  f5 {[%clk 0:02:59]} 4. Nc3 {[%clk 0:02:51]}  Nf6 {[%clk 0:02:59]} 5. g3 {[%clk 0:02:50]}  g6 {[%clk 0:02:57]} 6. Bg2 {[%clk 0:02:50]}  Bg7 {[%clk 0:02:57]} 7. e3 {[%clk 0:02:49]}  O-O {[%clk 0:02:58]} 8. Nge2 {[%clk 0:02:49]}  Nbd7 {[%clk 0:02:58]} 9. b3 {[%clk 0:02:50]}  a5 {[%clk 0:02:55]} 10. Bb2 {[%clk 0:02:50]}  Nc5 {[%clk 0:02:55]} 11. h4 {[%clk 0:02:41]}  h5 {[%clk 0:02:52]} 12. a3 {[%clk 0:02:39]}  Ng4 {[%clk 0:02:45]} 13. b4 {[%clk 0:02:26]}  axb4 {[%clk 0:02:45]} 14. axb4 {[%clk 0:02:27]}  Rxa1 {[%clk 0:02:45]} 15. Bxa1 {[%clk 0:02:28]}  Na6 {[%clk 0:02:45]} 16. Qb3 {[%clk 0:02:22]}  Qe7 {[%clk 0:02:35]} 17. O-O {[%clk 0:02:21]}  f4 {[%clk 0:02:31]} 18. Ne4 {[%clk 0:01:57]}  f3 {[%clk 0:02:27]} 19. Bxf3 {[%clk 0:01:56]}  Rxf3 {[%clk 0:02:28]} 20. Ng5 {[%clk 0:01:56]}  Rf8 {[%clk 0:02:25]} 21. f3 {[%clk 0:01:55]}  Nh6 {[%clk 0:02:22]} 22. e4 {[%clk 0:01:55]}  Bf6 {[%clk 0:02:18]} 23. Qe3 {[%clk 0:01:51]}  Bxg5 {[%clk 0:02:06]} 24. hxg5 {[%clk 0:01:52]}  Nf7 {[%clk 0:02:06]} 25. f4 {[%clk 0:01:52]}  Nxb4 {[%clk 0:02:07]} 26. Bc3 {[%clk 0:01:50]}  Na6 {[%clk 0:02:03]} 27. Bd2 {[%clk 0:01:47]}  exf4 {[%clk 0:01:48]} 28. gxf4 {[%clk 0:01:46]}  Nc5 {[%clk 0:01:49]} 29. Nc3 {[%clk 0:01:38]}  Nb3 {[%clk 0:01:13]} 30. Be1 {[%clk 0:00:46]}  c5 {[%clk 0:01:13]} 31. dxc6 {[%clk 0:00:43]}  bxc6 {[%clk 0:01:14]} 32. Bg3 {[%clk 0:00:25]}  Nc5 {[%clk 0:01:10]} 33. Re1 {[%clk 0:00:25]}  Re8 {[%clk 0:01:06]} 34. Qd4 {[%clk 0:00:20]}  Ne6 {[%clk 0:01:01]} 35. Qb6 {[%clk 0:00:19]}  Qc7 {[%clk 0:00:59]} 36. Qe3 {[%clk 0:00:18]}  Qa5 {[%clk 0:00:53]} 37. Ne2 {[%clk 0:00:16]}  Qc5 {[%clk 0:00:51]} 38. Qxc5 {[%clk 0:00:10]}  Nxc5 {[%clk 0:00:52]} 39. Nc3 {[%clk 0:00:10]}  Ba6 {[%clk 0:00:48]} 40. f5 {[%clk 0:00:07]}  Nxg5 {[%clk 0:00:42]} 41. Bxd6 {[%clk 0:00:06]}  Ncxe4 {[%clk 0:00:38]} 42. fxg6 {[%clk 0:00:05]}  Nf3+ {[%clk 0:00:37]} 43. Kg2 {[%clk 0:00:05]}  Nxe1+ {[%clk 0:00:38]} 44. Kh3 {[%clk 0:00:05]}  Nxd6 {[%clk 0:00:38]} 45. c5 {[%clk 0:00:03]}  Re3+ {[%clk 0:00:38]} 46. Kh4 {[%clk 0:00:04]}  Nf5+ {[%clk 0:00:38]} 47. Kg5 {[%clk 0:00:04]}  Rxc3 {[%clk 0:00:38]} 48. g7 {[%clk 0:00:04]}  Rxc5 {[%clk 0:00:37]} 49. Kg6 {[%clk 0:00:04]}  Ne7+ {[%clk 0:00:36]} 50. Kh6 {[%clk 0:00:04]}  Nf5+ {[%clk 0:00:33]} 51. Kg6 {[%clk 0:00:05]}  Nxg7 {[%clk 0:00:34]} 52. Kh6 {[%clk 0:00:05]}  Ng2 {[%clk 0:00:30]} 53. Kg6 {[%clk 0:00:06]}  Nf4+ {[%clk 0:00:28]} 54. Kh6 {[%clk 0:00:06]}  Nfe6 {[%clk 0:00:23]} 55. Kg6 {[%clk 0:00:06]}  Nd8 {[%clk 0:00:22]} 56. Kh6 {[%clk 0:00:07]}  Bb5 {[%clk 0:00:22]} 57. Kg6 {[%clk 0:00:07]}  Bd3+ {[%clk 0:00:22]} 58. Kf6 {[%clk 0:00:06]}  Rf5+ {[%clk 0:00:22]} 59. Kg6 {[%clk 0:00:04]}  Rf1+ {[%clk 0:00:18]} 60. Kh6 {[%clk 0:00:05]}  Nf7# {[%clk 0:00:17]} 0-1


[Site "https://www.chess.com"]

[Event "Titled Tuesday Blitz November 08 Late 2022"]
[White "Ashiku, Franc"]
[Black "Musovic, Armin"]
[WhiteFideId "4700066"]
[BlackFideId "939935"]
[WhiteElo "2306"]
[BlackElo "2288"]
[Result "1/2-1/2"]
[Round "08"]
[TimeControl "180+1"]
[Date "2022.11.09"]
[WhiteClock "0:00:05"]
[BlackClock "0:00:11"]

1. d4 {[%clk 0:03:00]}  d5 {[%clk 0:02:56]} 2. c4 {[%clk 0:02:59]}  c5 {[%clk 0:02:57]} 3. Nf3 {[%clk 0:02:52]}  Nf6 {[%clk 0:02:57]} 4. cxd5 {[%clk 0:02:45]}  cxd4 {[%clk 0:02:56]} 5. Qxd4 {[%clk 0:02:45]}  Qxd5 {[%clk 0:02:56]} 6. Nc3 {[%clk 0:02:44]}  Qxd4 {[%clk 0:02:57]} 7. Nxd4 {[%clk 0:02:45]}  a6 {[%clk 0:02:58]} 8. Bf4 {[%clk 0:02:32]}  Nbd7 {[%clk 0:02:57]} 9. Nf3 {[%clk 0:02:22]}  e6 {[%clk 0:02:49]} 10. e3 {[%clk 0:02:07]}  Bb4 {[%clk 0:02:47]} 11. Rc1 {[%clk 0:02:05]}  Nd5 {[%clk 0:02:47]} 12. Bg3 {[%clk 0:02:02]}  O-O {[%clk 0:02:41]} 13. Be2 {[%clk 0:01:49]}  f6 {[%clk 0:02:27]} 14. O-O {[%clk 0:01:38]}  Nxc3 {[%clk 0:02:25]} 15. bxc3 {[%clk 0:01:39]}  Ba3 {[%clk 0:02:26]} 16. Rb1 {[%clk 0:01:39]}  Kf7 {[%clk 0:02:22]} 17. Rfd1 {[%clk 0:01:37]}  e5 {[%clk 0:02:16]} 18. Bc4+ {[%clk 0:01:35]}  Ke7 {[%clk 0:02:16]} 19. Nd2 {[%clk 0:01:33]}  Rd8 {[%clk 0:02:09]} 20. Ne4 {[%clk 0:01:16]}  Nf8 {[%clk 0:02:04]} 21. Rxd8 {[%clk 0:01:11]}  Kxd8 {[%clk 0:02:05]} 22. f4 {[%clk 0:01:12]}  exf4 {[%clk 0:01:30]} 23. exf4 {[%clk 0:01:12]}  Bf5 {[%clk 0:01:30]} 24. Bd3 {[%clk 0:00:54]}  Kc7 {[%clk 0:01:28]} 25. Bf2 {[%clk 0:00:54]}  Re8 {[%clk 0:01:20]} 26. Bb6+ {[%clk 0:00:49]}  Kc6 {[%clk 0:01:20]} 27. Nf2 {[%clk 0:00:40]}  Bxd3 {[%clk 0:01:17]} 28. Nxd3 {[%clk 0:00:41]}  Re2 {[%clk 0:01:12]} 29. Bd4 {[%clk 0:00:41]}  b5 {[%clk 0:01:09]} 30. g4 {[%clk 0:00:23]}  Ne6 {[%clk 0:01:04]} 31. Bf2 {[%clk 0:00:18]}  Rxa2 {[%clk 0:01:02]} 32. f5 {[%clk 0:00:18]}  Nc5 {[%clk 0:01:01]} 33. Nb4+ {[%clk 0:00:10]}  Bxb4 {[%clk 0:01:00]} 34. cxb4 {[%clk 0:00:10]}  Nd3 {[%clk 0:00:56]} 35. Bg3 {[%clk 0:00:10]}  Rc2 {[%clk 0:00:55]} 36. Rb3 {[%clk 0:00:09]}  Nc1 {[%clk 0:00:52]} 37. Re3 {[%clk 0:00:08]}  Ne2+ {[%clk 0:00:51]} 38. Kf2 {[%clk 0:00:07]}  Nxg3+ {[%clk 0:00:48]} 39. Kxg3 {[%clk 0:00:08]}  Kd5 {[%clk 0:00:45]} 40. Re7 {[%clk 0:00:08]}  Kc4 {[%clk 0:00:41]} 41. Rc7+ {[%clk 0:00:07]}  Kb3 {[%clk 0:00:41]} 42. Rxg7 {[%clk 0:00:08]}  Kxb4 {[%clk 0:00:40]} 43. Rxh7 {[%clk 0:00:08]}  a5 {[%clk 0:00:41]} 44. Rh6 {[%clk 0:00:08]}  a4 {[%clk 0:00:41]} 45. Rxf6 {[%clk 0:00:08]}  a3 {[%clk 0:00:42]} 46. Ra6 {[%clk 0:00:09]}  Kb3 {[%clk 0:00:39]} 47. f6 {[%clk 0:00:10]}  Rc3+ {[%clk 0:00:33]} 48. Kh4 {[%clk 0:00:09]}  Rc4 {[%clk 0:00:29]} 49. Kg5 {[%clk 0:00:09]}  a2 {[%clk 0:00:27]} 50. f7 {[%clk 0:00:08]}  Rc8 {[%clk 0:00:17]} 51. Kf6 {[%clk 0:00:06]}  Rc6+ {[%clk 0:00:16]} 52. Rxc6 {[%clk 0:00:06]}  a1=Q+ {[%clk 0:00:17]} 53. Ke7 {[%clk 0:00:07]}  Qe1+ {[%clk 0:00:17]} 54. Re6 {[%clk 0:00:07]}  Qh4+ {[%clk 0:00:16]} 55. Ke8 {[%clk 0:00:06]}  Qxg4 {[%clk 0:00:16]} 56. Ke7 {[%clk 0:00:05]}  Qg5+ {[%clk 0:00:16]} 57. Ke8 {[%clk 0:00:06]}  Qh5 {[%clk 0:00:17]} 58. Ke7 {[%clk 0:00:06]}  Qh4+ {[%clk 0:00:17]} 59. Ke8 {[%clk 0:00:06]}  Qh5 {[%clk 0:00:13]} 60. Ke7 {[%clk 0:00:06]}  Qc5+ {[%clk 0:00:13]} 61. Ke8 {[%clk 0:00:05]}  Qh5 {[%clk 0:00:11]} 1/2-1/2


[Site "https://www.chess.com"]

[Event "Titled Tuesday Blitz November 08 Late 2022"]
[White "Baskakov, Egor"]
[Black "Pinheiro, Iung Alicio de O."]
[WhiteFideId "24197866"]
[BlackFideId "2104350"]
[WhiteElo "2211"]
[BlackElo "2283"]
[Result "1-0"]
[Round "08"]
[TimeControl "180+1"]
[Date "2022.11.08"]
[WhiteClock "0:01:03"]
[BlackClock "0:00:09"]

1. e4 {[%clk 0:03:00]}  c5 {[%clk 0:02:58]} 2. Nf3 {[%clk 0:03:00]}  Nc6 {[%clk 0:02:57]} 3. Nc3 {[%clk 0:03:00]}  e5 {[%clk 0:02:57]} 4. Nd5 {[%clk 0:03:00]}  d6 {[%clk 0:02:51]} 5. c3 {[%clk 0:02:59]}  Nge7 {[%clk 0:02:37]} 6. Bc4 {[%clk 0:02:53]}  Nxd5 {[%clk 0:02:36]} 7. Bxd5 {[%clk 0:02:52]}  Be7 {[%clk 0:02:35]} 8. d4 {[%clk 0:02:50]}  cxd4 {[%clk 0:02:19]} 9. cxd4 {[%clk 0:02:51]}  Nxd4 {[%clk 0:02:12]} 10. Nxd4 {[%clk 0:02:52]}  exd4 {[%clk 0:02:13]} 11. Qxd4 {[%clk 0:02:47]}  O-O {[%clk 0:02:12]} 12. O-O {[%clk 0:02:46]}  Bf6 {[%clk 0:02:10]} 13. Qd3 {[%clk 0:02:39]}  Be6 {[%clk 0:02:02]} 14. Bxe6 {[%clk 0:02:36]}  fxe6 {[%clk 0:02:01]} 15. Be3 {[%clk 0:02:32]}  Qe7 {[%clk 0:01:56]} 16. Rab1 {[%clk 0:02:27]}  Rfc8 {[%clk 0:01:52]} 17. Rfd1 {[%clk 0:02:26]}  Rc6 {[%clk 0:01:51]} 18. h3 {[%clk 0:02:25]}  a6 {[%clk 0:01:51]} 19. b4 {[%clk 0:02:24]}  b5 {[%clk 0:01:42]} 20. Bf4 {[%clk 0:02:17]}  Be5 {[%clk 0:01:16]} 21. Bxe5 {[%clk 0:02:12]}  dxe5 {[%clk 0:01:17]} 22. a3 {[%clk 0:02:13]}  Rac8 {[%clk 0:01:17]} 23. Qg3 {[%clk 0:02:12]}  Qf6 {[%clk 0:01:08]} 24. Rd7 {[%clk 0:02:10]}  Qg6 {[%clk 0:01:09]} 25. Qxe5 {[%clk 0:02:08]}  Qf6 {[%clk 0:01:00]} 26. Qg3 {[%clk 0:01:56]}  Qg6 {[%clk 0:00:50]} 27. Qxg6 {[%clk 0:01:50]}  hxg6 {[%clk 0:00:50]} 28. Ra7 {[%clk 0:01:51]}  Rd8 {[%clk 0:00:45]} 29. Rb3 {[%clk 0:01:46]}  e5 {[%clk 0:00:44]} 30. Rf3 {[%clk 0:01:44]}  Rf8 {[%clk 0:00:29]} 31. Rxf8+ {[%clk 0:01:44]}  Kxf8 {[%clk 0:00:30]} 32. f3 {[%clk 0:01:44]}  Kg8 {[%clk 0:00:25]} 33. Kh2 {[%clk 0:01:44]}  g5 {[%clk 0:00:25]} 34. Kg3 {[%clk 0:01:43]}  Kh7 {[%clk 0:00:25]} 35. Kg4 {[%clk 0:01:43]}  Kg6 {[%clk 0:00:24]} 36. g3 {[%clk 0:01:40]}  Kf6 {[%clk 0:00:18]} 37. Rd7 {[%clk 0:01:38]}  Kg6 {[%clk 0:00:16]} 38. Rd8 {[%clk 0:01:22]}  Kf6 {[%clk 0:00:14]} 39. Rf8+ {[%clk 0:01:18]}  Ke6 {[%clk 0:00:14]} 40. Kxg5 {[%clk 0:01:01]}  Rc3 {[%clk 0:00:14]} 41. Kg6 {[%clk 0:01:02]}  Rxa3 {[%clk 0:00:14]} 42. Kxg7 {[%clk 0:01:02]}  Rb3 {[%clk 0:00:12]} 43. h4 {[%clk 0:01:02]}  Rxb4 {[%clk 0:00:12]} 44. h5 {[%clk 0:01:03]}  Rc4 {[%clk 0:00:09]} 45. h6 {[%clk 0:01:03]}  Rc7+ {[%clk 0:00:09]} 46. Kg6 {[%clk 0:01:03]} 1-0


[Site "https://www.chess.com"]

[Event "Titled Tuesday Blitz November 08 Late 2022"]
[White "Bazeev, German"]
[Black "Rasulov, Vugar"]
[WhiteFideId "24119350"]
[BlackFideId "13402390"]
[WhiteElo "2493"]
[BlackElo "2509"]
[Result "0-1"]
[Round "08"]
[TimeControl "180+1"]
[Date "2022.11.08"]
[WhiteClock "0:00:04"]
[BlackClock "0:00:37"]

1. d4 {[%clk 0:03:00]}  c5 {[%clk 0:03:00]} 2. d5 {[%clk 0:03:00]}  d6 {[%clk 0:03:00]} 3. c4 {[%clk 0:02:59]}  b5 {[%clk 0:03:01]} 4. e4 {[%clk 0:02:56]}  b4 {[%clk 0:03:00]} 5. a4 {[%clk 0:02:51]}  g6 {[%clk 0:03:00]} 6. b3 {[%clk 0:02:51]}  Bg7 {[%clk 0:03:00]} 7. Ra2 {[%clk 0:02:51]}  Nf6 {[%clk 0:03:01]} 8. Bd3 {[%clk 0:02:50]}  O-O {[%clk 0:03:01]} 9. Nf3 {[%clk 0:02:51]}  Bg4 {[%clk 0:03:00]} 10. Nbd2 {[%clk 0:02:49]}  e6 {[%clk 0:02:58]} 11. O-O {[%clk 0:02:47]}  Nbd7 {[%clk 0:02:58]} 12. h3 {[%clk 0:02:47]}  Bxf3 {[%clk 0:02:58]} 13. Nxf3 {[%clk 0:02:47]}  exd5 {[%clk 0:02:57]} 14. exd5 {[%clk 0:02:42]}  Re8 {[%clk 0:02:58]} 15. Bf4 {[%clk 0:02:40]}  Qc7 {[%clk 0:02:58]} 16. Bh2 {[%clk 0:02:28]}  Ne4 {[%clk 0:02:50]} 17. Bxe4 {[%clk 0:02:28]}  Rxe4 {[%clk 0:02:51]} 18. Re1 {[%clk 0:02:25]}  Nf6 {[%clk 0:02:50]} 19. Rae2 {[%clk 0:02:23]}  Rae8 {[%clk 0:02:42]} 20. g4 {[%clk 0:02:02]}  Qd7 {[%clk 0:02:35]} 21. Rxe4 {[%clk 0:01:55]}  Nxe4 {[%clk 0:02:36]} 22. Kg2 {[%clk 0:01:42]}  f5 {[%clk 0:02:33]} 23. g5 {[%clk 0:01:37]}  h6 {[%clk 0:02:30]} 24. h4 {[%clk 0:01:36]}  hxg5 {[%clk 0:02:30]} 25. hxg5 {[%clk 0:01:37]}  Kf7 {[%clk 0:02:29]} 26. Bf4 {[%clk 0:01:32]}  Rh8 {[%clk 0:02:26]} 27. Rh1 {[%clk 0:01:29]}  Qe8 {[%clk 0:02:26]} 28. Nh4 {[%clk 0:00:49]}  Nc3 {[%clk 0:02:00]} 29. Qf3 {[%clk 0:00:48]}  Qe4 {[%clk 0:01:51]} 30. Qxe4 {[%clk 0:00:39]}  fxe4 {[%clk 0:01:52]} 31. Bxd6 {[%clk 0:00:36]}  Bd4 {[%clk 0:01:47]} 32. Bg3 {[%clk 0:00:34]}  Rh5 {[%clk 0:01:39]} 33. Nf5 {[%clk 0:00:30]}  Rxg5 {[%clk 0:01:38]} 34. Rh7+ {[%clk 0:00:28]}  Kg8 {[%clk 0:01:37]} 35. Nxd4 {[%clk 0:00:23]}  cxd4 {[%clk 0:01:23]} 36. d6 {[%clk 0:00:24]}  Kxh7 {[%clk 0:01:02]} 37. d7 {[%clk 0:00:24]}  d3 {[%clk 0:00:50]} 38. d8=Q {[%clk 0:00:24]}  Rf5 {[%clk 0:00:51]} 39. c5 {[%clk 0:00:22]}  Nd5 {[%clk 0:00:45]} 40. Qh4+ {[%clk 0:00:10]}  Kg8 {[%clk 0:00:45]} 41. c6 {[%clk 0:00:10]}  d2 {[%clk 0:00:43]} 42. Qg4 {[%clk 0:00:11]}  Kf7 {[%clk 0:00:39]} 43. Qe2 {[%clk 0:00:09]}  e3 {[%clk 0:00:39]} 44. c7 {[%clk 0:00:07]}  exf2 {[%clk 0:00:37]} 45. Kf1 {[%clk 0:00:04]}  Ne3+ {[%clk 0:00:36]} 46. Qxe3 {[%clk 0:00:04]}  d1=Q+ {[%clk 0:00:37]} 0-1


[Site "https://www.chess.com"]

[Event "Titled Tuesday Blitz November 08 Late 2022"]
[White "Brown, Andrew"]
[Black "Rangel, Daniel"]
[WhiteFideId "3206513"]
[BlackFideId "2124475"]
[WhiteElo "2245"]
[BlackElo "2225"]
[Result "1-0"]
[Round "08"]
[TimeControl "180+1"]
[Date "2022.11.09"]
[WhiteClock "0:00:05"]
[BlackClock "0:00:05"]

1. d4 {[%clk 0:03:00]}  Nf6 {[%clk 0:02:57]} 2. c4 {[%clk 0:02:53]}  e6 {[%clk 0:02:56]} 3. Nc3 {[%clk 0:02:51]}  d5 {[%clk 0:02:55]} 4. g3 {[%clk 0:02:51]}  c6 {[%clk 0:02:54]} 5. Bg2 {[%clk 0:02:51]}  Nbd7 {[%clk 0:02:54]} 6. Nf3 {[%clk 0:02:51]}  b6 {[%clk 0:02:54]} 7. O-O {[%clk 0:02:51]}  Bb7 {[%clk 0:02:55]} 8. Ne5 {[%clk 0:02:50]}  Bd6 {[%clk 0:02:55]} 9. f4 {[%clk 0:02:46]}  O-O {[%clk 0:02:53]} 10. e4 {[%clk 0:02:39]}  Re8 {[%clk 0:02:28]} 11. Nxf7 {[%clk 0:02:26]}  Kxf7 {[%clk 0:02:25]} 12. e5 {[%clk 0:02:25]}  Bf8 {[%clk 0:02:24]} 13. exf6 {[%clk 0:02:23]}  Nxf6 {[%clk 0:02:25]} 14. b3 {[%clk 0:02:09]}  c5 {[%clk 0:02:19]} 15. Be3 {[%clk 0:01:41]}  cxd4 {[%clk 0:02:11]} 16. Bxd4 {[%clk 0:01:39]}  Qc7 {[%clk 0:01:48]} 17. cxd5 {[%clk 0:01:27]}  Nxd5 {[%clk 0:01:39]} 18. Nxd5 {[%clk 0:01:23]}  Bxd5 {[%clk 0:01:40]} 19. Bxd5 {[%clk 0:01:19]}  exd5 {[%clk 0:01:41]} 20. Qh5+ {[%clk 0:01:17]}  Kg8 {[%clk 0:01:37]} 21. Qxd5+ {[%clk 0:01:16]}  Kh8 {[%clk 0:01:37]} 22. Rac1 {[%clk 0:01:10]}  Qe7 {[%clk 0:01:37]} 23. Be5 {[%clk 0:01:08]}  Rad8 {[%clk 0:01:36]} 24. Qf3 {[%clk 0:00:57]}  Rd2 {[%clk 0:01:29]} 25. Rf2 {[%clk 0:00:49]}  Rxf2 {[%clk 0:01:15]} 26. Kxf2 {[%clk 0:00:43]}  Qa3 {[%clk 0:01:11]} 27. Rc2 {[%clk 0:00:43]}  Qe7 {[%clk 0:00:50]} 28. Kg2 {[%clk 0:00:26]}  Qf7 {[%clk 0:00:49]} 29. Rc7 {[%clk 0:00:24]}  Qg6 {[%clk 0:00:39]} 30. h4 {[%clk 0:00:16]}  h6 {[%clk 0:00:34]} 31. h5 {[%clk 0:00:16]}  Qf5 {[%clk 0:00:29]} 32. g4 {[%clk 0:00:16]}  Qb1 {[%clk 0:00:29]} 33. Qc6 {[%clk 0:00:16]}  Qxa2+ {[%clk 0:00:25]} 34. Qc2 {[%clk 0:00:11]}  Qxc2+ {[%clk 0:00:23]} 35. Rxc2 {[%clk 0:00:11]}  a5 {[%clk 0:00:20]} 36. Rc7 {[%clk 0:00:11]}  b5 {[%clk 0:00:16]} 37. Ra7 {[%clk 0:00:09]}  a4 {[%clk 0:00:12]} 38. bxa4 {[%clk 0:00:09]}  bxa4 {[%clk 0:00:13]} 39. Rxa4 {[%clk 0:00:10]}  Kg8 {[%clk 0:00:13]} 40. Ra7 {[%clk 0:00:10]}  Rc8 {[%clk 0:00:13]} 41. Kf3 {[%clk 0:00:09]}  Rc2 {[%clk 0:00:13]} 42. Ke4 {[%clk 0:00:09]}  Rc8 {[%clk 0:00:13]} 43. Kf5 {[%clk 0:00:08]}  Re8 {[%clk 0:00:12]} 44. Rb7 {[%clk 0:00:07]}  Rc8 {[%clk 0:00:10]} 45. g5 {[%clk 0:00:06]}  hxg5 {[%clk 0:00:10]} 46. fxg5 {[%clk 0:00:07]}  Re8 {[%clk 0:00:10]} 47. Rc7 {[%clk 0:00:04]}  Ra8 {[%clk 0:00:07]} 48. Rc6 {[%clk 0:00:04]}  Re8 {[%clk 0:00:07]} 49. Bd4 {[%clk 0:00:03]}  Ra8 {[%clk 0:00:07]} 50. Be5 {[%clk 0:00:03]}  Re8 {[%clk 0:00:06]} 51. h6 {[%clk 0:00:04]}  gxh6 {[%clk 0:00:06]} 52. gxh6 {[%clk 0:00:04]}  Re7 {[%clk 0:00:01]} 53. Bf6 {[%clk 0:00:04]}  Rh7 {[%clk 0:00:02]} 54. Bg5 {[%clk 0:00:04]}  Bxh6 {[%clk 0:00:02]} 55. Bxh6 {[%clk 0:00:04]}  Rf7+ {[%clk 0:00:03]} 56. Kg6 {[%clk 0:00:04]}  Rg7+ {[%clk 0:00:02]} 57. Kh5 {[%clk 0:00:04]}  Rf7 {[%clk 0:00:02]} 58. Rc8+ {[%clk 0:00:04]}  Kh7 {[%clk 0:00:02]} 59. Rc5 {[%clk 0:00:03]}  Re7 {[%clk 0:00:02]} 60. Bg5 {[%clk 0:00:04]}  Rd7 {[%clk 0:00:03]} 61. Kg4 {[%clk 0:00:04]}  Rf7 {[%clk 0:00:04]} 62. Bf4 {[%clk 0:00:04]}  Rb7 {[%clk 0:00:05]} 63. Kg5 {[%clk 0:00:04]}  Rg7+ {[%clk 0:00:05]} 64. Kf6 {[%clk 0:00:04]}  Rb7 {[%clk 0:00:06]} 65. Be5 {[%clk 0:00:05]}  Rg7 {[%clk 0:00:06]} 66. Rc8 {[%clk 0:00:04]}  Rg6+ {[%clk 0:00:06]} 67. Kf5 {[%clk 0:00:05]}  Ra6 {[%clk 0:00:05]} 68. Rh8# {[%clk 0:00:05]} 1-0


[Site "https://www.chess.com"]